Cogmind - Beta 14 @@@ ROGUE MODE // 2024.10.28 @ 13:47:11 Player: Tereza Result: Destroyed by 0L-TSE(R) with Subdweller Machine Gun Performance ------------- Evolutions (0) 0 Regions Visited (2) 400 Robots Destroyed (10) 50 Value Destroyed (275) 275 Prototype IDs (0) 0 Alien Tech Used (0) 0 Bonus (0) 0 TOTAL SCORE: 725 Bonus ------- None Cogmind --------- Core Integrity 0/250 Matter 264/300 Energy 54/100 System Corruption 0% Temperature Cool (0) Movement Rolling (95) Ox1 Location -10/Subcaves Parts ------- > --- POWER (1) -------- (None) > --- PROPULSION (2) --- Wheel > --- UTILITY (2) ------ Small Storage Unit Sensor Array > --- WEAPON (2) ------- Subdweller Laser Subdweller Machine Gun > --- INVENTORY (8) ---- Ion Engine Aluminum Leg Compact Wheel Disposable Heat Sink Sensor Array Makeshift Targeting Computer Peak State ------------ > --- POWER ------------ Ion Engine > --- PROPULSION ------- Light Treads Light Treads > --- UTILITY ---------- Small Storage Unit Sensor Array > --- WEAPON ----------- Small Laser Assault Rifle > --- INVENTORY -------- Ion Engine Aluminum Leg Aluminum Leg Aluminum Leg Wheel Compact Wheel Flight Unit Small Laser [Rating: 7] Favorites ----------- Power Ion Engine Engine Ion Engine Propulsion Light Treads Treads Light Treads Wheel Wheel Utility Small Storage Unit Device Sensor Array Storage Small Storage Unit Weapon Assault Rifle Energy Gun Small Laser Ballistic Gun Assault Rifle Build | -11 -10 -10 ------- Run | Yrd Mat Sub Slots Evolved . | . . . Power . | . . . Propulsion . | . . . Utility . | . . . Weapon . | . . . Parts Attached 16 | 6 4 6 Power 2 | 1 1 . Engine 2 | 1 1 . Core . | . . . Reactor . | . . . Propulsion 4 | 3 . 1 Treads 2 | 2 . . Leg . | . . . Wheel 2 | 1 . 1 Hover . | . . . Flight . | . . . Utility 3 | 1 1 1 Device 2 | . 1 1 Storage 1 | 1 . . Processor . | . . . Hackware . | . . . Protection . | . . . Artifact . | . . . Weapon 7 | 1 2 4 Energy Gun 4 | . 2 2 Energy Cannon . | . . . Ballistic Gun 3 | 1 . 2 Ballistic Cannon . | . . . Launcher . | . . . Special Weapon . | . . . Impact Weapon . | . . . Slashing Weapon . | . . . Piercing Weapon . | . . . Special Melee Weapon . | . . . Unidentified Prototypes . | . . . Parts Lost 8 | . 1 7 Power 1 | . . 1 Propulsion 2 | . . 2 Utility 1 | . . 1 Weapon 4 | . 1 3 Highest Loss Streak 6 | . 1 6 To Critical Strikes . | . . . Average Slot Usage (%) 82 | . 94 58 Engine 10 | . 14 4 Treads 21 | . 28 7 Wheel 3 | . . 10 Device 10 | . 9 14 Storage 14 | . 14 14 Energy Gun 10 | . 13 5 Ballistic Gun 10 | . 14 3 Peak Build Rating 7 | 5 7 7 Average Rating 5 | 3 6 4 On Entrance 4 | . 5 7 Naked Turns . | . . . Heaviest Build 14 | 12 14 14 Greatest Support 40 | 40 40 40 Greatest Overweight (x) 3 | 3 . 2 Average Overweight (x) . | . . . Largest Inventory Capacity 8 | 8 8 8 Average Capacity 7 | 7 8 8 Most Carried 8 | 7 8 8 Average Carried 7 | 4 7 7 Final Capacity 8 | 8 8 8 Final Carried 8 | 7 8 6 Class Distribution -------------------- 100% | Mutant Dominant Class ---------------- Mutant | -10/Materials Mutant | -10/Subcaves Resources | -11 -10 -10 ----------- Run | Yrd Mat Sub Matter Collected 414 | 195 96 123 Remotely . | . . . Salvage Created 359 | . 278 81 Parts 24 | . 15 9 Haulers Intercepted . | . . . Recyclers Shooed . | . . . Parts Field Recycled . | . . . Retrieved Matter . | . . . Parts Self-Destructed 13 | . . 13 Prevented . | . . . Kills | -11 -10 -10 ------- Run | Yrd Mat Sub Combat Hostiles Destroyed 9 | . 7 2 Guns 9 | . 7 2 Classes Destroyed 4 | . 3 1 Watcher 1 | . 1 . Swarmer 3 | . 3 . Grunt 4 | . 4 . Subdweller 2 | . . 2 Best Kill Streak 3 | . 3 1 Combat Bots Only 3 | . 3 1 Max Kills in Single Turn 1 | . 1 1 Gunslinging . | . . . Exploded . | . . . Melee . | . . . Uniques/NPCs Destroyed . | . . . Combat | -11 -10 -10 -------- Run | Yrd Mat Sub Hostile Shots Fired 93 | . 63 30 Missed 20 | . 16 4 Damage Taken 1098 | . 489 609 Core 258 | . 37 221 Absorbed by Shields . | . . . Core Remaining (%) 100 | 100 . . Volleys Fired 47 | . 37 10 Largest 2 | . 2 2 Hottest 90 | . 60 90 Shots Fired 92 | . 74 18 Gun 92 | . 74 18 Cannon . | . . . Launcher . | . . . Special . | . . . Kinetic 43 | . 37 6 Thermal 44 | . 32 12 Explosive . | . . . Electromagnetic 5 | . 5 . Robot Hit Streak 9 | . 9 7 Robot Miss Streak 6 | . 6 1 Penetration Max . | . . . Secondary Targets 2 | . 2 . Max Gunslinging Chain 1 | . 1 . Shots Hit Robots 53 | . 40 13 Core Hits 19 | . 14 5 Critical Kills . | . . . Critical Parts Destroyed . | . . . Critical Strikes . | . . . Melee Attacks . | . . . Impact . | . . . Slashing . | . . . Piercing . | . . . Sneak Attacks . | . . . Combat Hostiles . | . . . Follow-up Attacks . | . . . Damage Inflicted 685 | . 463 222 Guns 685 | . 463 222 Cannons . | . . . Explosions . | . . . Melee . | . . . Ramming . | . . . Kinetic 314 | . 212 102 Thermal 344 | . 224 120 Explosive . | . . . Electromagnetic 27 | . 27 . Impact . | . . . Slashing . | . . . Piercing . | . . . Highest Corruption . | . . . Average Corruption . | . . . Corruption Purged . | . . . Corruption Blocked . | . . . Overload Shots . | . . . Overflow Damage . | . . . Projectiles . | . . . Explosions . | . . . Melee . | . . . Knockbacks . | . . . Impact . | . . . Kinetic . | . . . Secondary . | . . . Self-Inflicted Damage . | . . . Shots . | . . . Rammed . | . . . Targets Rammed . | . . . Kicked . | . . . Crushed . | . . . Highest Temperature 64 | . 64 . Average Temperature 30 | . 30 . Received Heat Transfer 174 | . 174 . Siege Activations . | . . . Robots Corrupted . | . . . Combat Hostiles . | . . . Parts Fried . | . . . Impact Corruptions . | . . . Robots Melted . | . . . Combat Hostiles . | . . . Parts Melted . | . . . Heat Transferred 750 | . 525 225 Parts Sabotaged . | . . . Parts Stolen . | . . . Parts Stripped . | . . . Power Chain Reactions . | . . . Alert | -11 -10 -10 ------- Run | Yrd Mat Sub Peak Influence 123 | . 123 . Initial . | . . . Average 36 | . 41 . Maximum Alert Level . | . . . Low Security (%) 100 | 100 100 . Level 1 . | . . . Level 2 . | . . . Level 3 . | . . . Level 4 . | . . . Level 5 . | . . . High Security . | . . . Max Security . | . . . Squads Dispatched 1 | . 1 . Investigation 1 | . 1 . Extermination . | . . . Reinforcement . | . . . Assault . | . . . Garrison . | . . . Intercept . | . . . Searches Triggered . | . . . Construction Impeded . | . . . Haulers Reinforced . | . . . Active Scanning Responses . | . . . Cargo Convoy Interrupts . | . . . Stealth | -11 -10 -10 --------- Run | Yrd Mat Sub Distress Signals . | . . . Communications Jammed . | . . . Distress Signals . | . . . Times Spotted 13 | . 9 4 Peak Tracking Total 3 | . 3 2 Tactical Retreats 1 | . 1 . Traps | -11 -10 -10 ------- Run | Yrd Mat Sub Traps Triggered 2 | . 1 1 Indirectly . | . . . Trap Hack Attempts . | . . . Triggered . | . . . Disarmed . | . . . Reprogrammed . | . . . Reused . | . . . Traps Extracted . | . . . Installed . | . . . Triggered . | . . . Machines | -11 -10 -10 ---------- Run | Yrd Mat Sub Machines Disabled . | . . . Max in Single Turn . | . . . Machines Repaired . | . . . Machines Dismantled . | . . . Machines Sabotaged . | . . . Overloaded Fab Kills . | . . . Hacking | -11 -10 -10 --------- Run | Yrd Mat Sub Machines Accessed . | . . . Terminals . | . . . Fabricators . | . . . Repair Stations . | . . . Recycling Units . | . . . Scanalyzers . | . . . Garrison Access . | . . . Total Hacks . | . . . Successful . | . . . Failed . | . . . Catastrophic . | . . . Database Lockouts . | . . . Manual . | . . . Terminals . | . . . Fabricators . | . . . Repair Stations . | . . . Recycling Units . | . . . Scanalyzers . | . . . Garrison Access . | . . . Terminal Hacks . | . . . Fabricator Hacks . | . . . Repair Station Hacks . | . . . Recycling Unit Hacks . | . . . Scanalyzer . | . . . Garrison Access Hacks . | . . . Unauthorized Hacks . | . . . Terminals . | . . . Fabricators . | . . . Repair Stations . | . . . Recycling Units . | . . . Scanalyzers . | . . . Garrison Access . | . . . Data Cores Recovered . | . . . Used . | . . . Hacking Detections . | . . . Full Trace Events . | . . . Feedback Events . | . . . Feedback Blocked . | . . . Robot Schematics Acquired . | . . . Robots Built . | . . . Authchips . | . . . Time . | . . . Total Robot Build Rating . | . . . Part Schematics Acquired . | . . . Parts Built . | . . . Authchips . | . . . Time . | . . . Total Part Build Rating . | . . . Parts Repaired . | . . . Time . | . . . Parts Recycled . | . . . Recycled Matter . | . . . Retrieved Matter . | . . . Retrieved Components . | . . . Parts Scanalyzed . | . . . Part Schematics Acquired . | . . . Parts Damaged . | . . . Bothacking | -11 -10 -10 ------------ Run | Yrd Mat Sub Used RIF Installer . | . . . Robots Hacked . | . . . Non-combat . | . . . Combat . | . . . Robot Hacks Applied . | . . . Relay Couplers Released . | . . . Fabnet Peak Effective % . | . . . Robots Rewired . | . . . Allies Hacked . | . . . Hacks Repelled . | . . . Allies | -11 -10 -10 -------- Run | Yrd Mat Sub Total Allies . | . . . Largest Group . | . . . Highest-Rated Group . | . . . Highest-Rated Ally . | . . . Total Orders . | . . . Ally Attacks . | . . . Total Damage . | . . . Kills . | . . . Allies Corrupted . | . . . Allies Melted . | . . . Intel | -11 -10 -10 ------- Run | Yrd Mat Sub Robot Analysis Total . | . . . Derelict Logs Recovered . | . . . Drone Launches . | . . . Drone Recoveries . | . . . Exploration | -11 -10 -10 ------------- Run | Yrd Mat Sub Turns Passed 925 | 77 562 286 Spaces Moved 528 | 41 264 223 Core 14 | 12 . 2 Treads 323 | 29 264 30 Legs . | . . . Wheels 191 | . . 191 Hover . | . . . Flight . | . . . Fastest Speed 50 | 50 160 80 Average Speed 130 | 152 160 91 Slowest Speed 200 | 200 160 160 Overloaded Moves . | . . . Propulsion Burnouts . | . . . Robots Hopped . | . . . Cave-ins Triggered . | . . . Exploration Rate (%) 21 | 5 39 21 Regions Visited 2 Branch Regions 1 Pre-discovered Areas . | . . . Known Exits Taken . | . . . Unknown Exits Taken 2 | 1 1 . Scrap Searched . | . . . Spaces Dug . | . . . Terrain Destroyed . | . . . Melee . | . . . Projectile . | . . . AOE . | . . . Terrain Rammed . | . . . Walls Destroyed . | . . . Machines Disabled . | . . . Actions | -11 -10 -10 --------- Run | Yrd Mat Sub Total 674 | 53 331 290 Wait 61 | . 17 44 Move 526 | 40 263 223 Hop . | . . . Pick Up 16 | 6 6 4 Fast Attach 9 | 6 1 2 Attach 6 | . 2 4 Detach 1 | 1 . . Swap 1 | . 1 . Drop 7 | . 4 3 Fire 47 | . 37 10 Melee . | . . . Ram . | . . . Kick . | . . . Crush . | . . . Escape Stasis . | . . . Rewire . | . . . Trap . | . . . Miscellaneous . | . . . Route ------- -11/Scrapyard -10/Materials (discovered 2 exits: [*Mat] / [*Sub]) -10/Subcaves History --------- Turn | Location | Event 18 | -11/Scrapyard | Discovered new exit (range 16) 78 | -11/Scrapyard | Entered Materials 180 | -10/Materials | Discovered new exit (range 4) 307 | -10/Materials | Build established: Mutant 598 | -10/Materials | Discovered new exit (range 7) 640 | -10/Materials | Entered Subcaves 761 | -10/Subcaves | Lost 6 parts (1p2n3w) 884 | -10/Subcaves | Core integrity fell below 50% 923 | -10/Subcaves | Core integrity fell below 20% 926 | -10/Subcaves | Destroyed by 0L-TSE(R) with Subdweller Machine Gun Last Messages --------------- 00735_ Acquired Mak. Targeting Computer. 00737_ Acquired Disposable Heat Sink. 00739_ Dropped Sub. Machine Gun. 00740_ Subatomizers dissect the Sub. Power Source. 00740_ Dropped Ion Engine. 00741_ Acquired Sub. Machine Gun. 00743_ Dropped Aluminum Leg. 00743_ Acquired Ion Engine. 00788_ Q4-4BJ(u) tweaks Twisted Machinery. 00799_ Acquired 8 matter. 00816_ Acquired 7 matter. 00847_ Acquired 49 matter. 00853_ 0L-TSE(R): "LEAVESUB!" 00883_ Triggered Shrapnel Trap. 00883_ An expanding cloud of shrapnel blasts out in all directions. 00883_ Sensor Array destroyed. 00910_ Acquired Sub. Laser. 00922_ AT-NS8(R) destroyed. Map ----- +----------------------------------------------------+ | ?????????????????????????????????????????????????? | | ?????????????????????????????????????????????????? | | ?????????????????????????????????????????????????? | | ????????????????????????????????? ??????????????? | | ????????????????????????????????? #?????????????? | | ????????????????????????????????# %"?????????????? | | ????????????????????????????????" #????????????? | | ?????????????????????????# ????? "????????????? | | ?????????????????????????# ????? ????????????? | | ????????????????????????## ????# ????????????? | | ????????????????????????# #### ????????????? | | ????????????????????????? ## #????????????? | | ?????????????????????????? #???? ???????? | | ?????????????????????????? #???? ???????? | | ????????????????????##???# ##??? ???????? | | ???????????????????## #?? ??? #???????? | | ??????????????????? ?# % #??? ####????? | | ???????????????????? ]# ??#% #??? ##?##? | | ????????????????????? # #??# #??# # # ## | | ?????????????????????? ##?## ### # | | ??????????????????????? ?## # | | ???????????????????????# #??# #?????? | | ??????????????????????##!& #???# " ##?????? | | ??????????????????????# *%##???# ^ "##??????? | | ??????????????????????# [&=##### ##???????? | | ??????????????????????## @## ##??????? | | ??????????????????????# #??????? | | ???????????????????#### R %#??????? | | ???????????????????# ## ## ## # | | ???????????????????# #### ## | | ???????????????????# #### | | ???????????????????# ##?# ## ## | | ???????????????????# ####??## ####?# ## | | ???????????????????# ##?????# ##?????? ##? | | ???????????????????# ###??????## ##???????#?? | | ???????????????????## ##????????# #?????????? | | ????????????????????#####???????#### #?????????? | | ???????????????????????????????## ##?????????? | | ???????????????????????????????# "% ##?????????? | | ???????????????????????????????##" " #?????????? | | ???????????????????????????????## " ####?????????? | | ???????????????????????????????# ##????????????? | | ???????????????????????????????## ""#????????????? | | ???????????????????????????????## "#?????#####??? | | ???????????????????????????????#" "##????# #??? | | ???????????????????????????????#" ""###### #??? | | ???????????????????????????????## ## #??? | | ????????????????????????????????#" #??? | | ????????????????????????????????#" ##?? | | ????????????????????????????????## # # #?? | +----------------------------------------------------+ Best States ------------- Heat Dissipation 25 Energy Generation 10 Energy Capacity 250 Matter Stores 300 Matter Capacity 300 Sight Range 16 Robot Scan Range 14 Terrain Scan Density 10 Evasion (%) 44 Recoil Reduction 2 Item Schematics ----------------- None Robot Schematics ------------------ None Fabricated ------------ Nothing Alien Tech Used ----------------- None Achievements -------------- None Challenges ------------ None Game ------ Seed TransmissionUtilityMask Manual? 0 Play Time 00:07:50 Cumulative 90.8 hours Start 2024.10.28 @ 13:41:34 End 2024.10.28 @ 13:47:11 Sessions 1 Manual Loads 0 Difficulty Rogue Special Mode None Game No. 115 Rogue 115 Adventurer 0 Explorer 0 Win Type - Total 1 Types 1/0/0/0/0/0/0/0/0 Lore% 59 Gallery% 48 Achievement% 39 Wizard Run 0 Options --------- Layout 1 ASCII 0 Keyboard 1 Movement Numpad Keybinds 0 Fullscreen 1 Font 24/Smallcaps Map View 50x35 Zoom Use 0% Tactical HUD 1 Map Filters NONE Filters NONE Steam 1 RUN: c853513f-2f27-4093-9543-fc90079bb123